[Event "*** Titled Tuesday 3|2 Blitz"]
[Site "Chess.com"]
[Date "2016.09.06"]
[Round "9"]
[White "goingin33"]
[Black "Saitama_Hero"]
[Result "1-0"]
[WhiteElo "2170"]
[BlackElo "2267"]
[TimeControl "180+2"]
[EndTime "12:56:01 PDT"]
[Termination "goingin33 won by resignation"]

1. e4 {[%clk 0:03:01.9]} 1... c5 {[%clk 0:02:58.9]} 2. Nf3 {[%clk 0:03:03.1]}
2... Nc6 {[%clk 0:02:58.5]} 3. d4 {[%clk 0:03:04]} 3... cxd4 {[%clk 0:03:00.4]}
4. Nxd4 {[%clk 0:03:05.9]} 4... Nf6 {[%clk 0:02:59.8]} 5. Nc3 {[%clk 0:03:07.2]}
5... d6 {[%clk 0:03:01.1]} 6. g3 {[%clk 0:03:07.4]} 6... e6 {[%clk 0:02:51.9]}
7. Bg2 {[%clk 0:03:07.5]} 7... Bd7 {[%clk 0:02:51.8]} 8. O-O {[%clk 0:03:08.1]}
8... a6 {[%clk 0:02:52.1]} 9. a4 {[%clk 0:03:05.1]} 9... Rc8 {[%clk 0:02:51.5]}
10. Nb3 {[%clk 0:03:02.6]} 10... Be7 {[%clk 0:02:51.8]} 11. a5 {[%clk
0:03:02.2]} 11... O-O {[%clk 0:02:49.6]} 12. Be3 {[%clk 0:03:01.6]} 12... Ne5
{[%clk 0:02:47.7]} 13. f4 {[%clk 0:02:53.3]} 13... Nc4 {[%clk 0:02:46.7]} 14.
Bc1 {[%clk 0:02:54.9]} 14... b6 {[%clk 0:02:31.8]} 15. axb6 {[%clk 0:02:35.9]}
15... Qxb6+ {[%clk 0:02:33.7]} 16. Kh1 {[%clk 0:02:37.8]} 16... Rfd8 {[%clk
0:02:30.6]} 17. g4 {[%clk 0:02:32.8]} 17... d5 {[%clk 0:01:48.5]} 18. e5 {[%clk
0:02:32.1]} 18... Ne4 {[%clk 0:01:49.7]} 19. Nxe4 {[%clk 0:02:09.1]} 19... dxe4
{[%clk 0:01:51.6]} 20. Qe2 {[%clk 0:02:09.7]} 20... e3 {[%clk 0:01:42.7]} 21. f5
{[%clk 0:01:51]} 21... Bb5 {[%clk 0:01:39.7]} 22. fxe6 {[%clk 0:01:35.9]} 22...
Qxe6 {[%clk 0:01:22.6]} 23. Bxe3 {[%clk 0:01:30.6]} 23... Qxe5 {[%clk
0:01:11.3]} 24. Rfe1 {[%clk 0:01:17.7]} 24... Qxb2 {[%clk 0:00:55.2]} 25. Bd4
{[%clk 0:01:06]} 25... Bf6 {[%clk 0:00:40.5]} 26. Bxb2 {[%clk 0:01:03.5]} 26...
Bxb2 {[%clk 0:00:42.4]} 27. Rad1 {[%clk 0:01:01]} 27... Bc3 {[%clk 0:00:42.7]}
28. Rxd8+ {[%clk 0:01:01.1]} 28... Rxd8 {[%clk 0:00:42.1]} 29. Rd1 {[%clk
0:01:01.5]} 29... Re8 {[%clk 0:00:42.4]} 30. Qxe8+ {[%clk 0:00:50.1]} 30... Bxe8
{[%clk 0:00:44.3]} 31. Rd8 {[%clk 0:00:51]} 31... Kf8 {[%clk 0:00:45.4]} 32. Bc6
{[%clk 0:00:50.7]} 32... Ke7 {[%clk 0:00:46.5]} 33. Rxe8+ {[%clk 0:00:50.9]}
33... Kd6 {[%clk 0:00:48.2]} 34. Bg2 {[%clk 0:00:50]} 34... a5 {[%clk
0:00:44.7]} 35. Rc8 {[%clk 0:00:49.7]} 1-0

[Event "*** Titled Tuesday 3|2 Blitz"]
[Site "Chess.com"]
[Date "2016.09.06"]
[Round "9"]
[White "Lali-Rustavi"]
[Black "Polemistis"]
[Result "0-1"]
[WhiteElo "1800"]
[BlackElo "1835"]
[TimeControl "180+2"]
[EndTime "12:56:07 PDT"]
[Termination "Polemistis won by resignation"]

1. e4 {[%clk 0:03:01.9]} 1... c5 {[%clk 0:02:57.3]} 2. Nc3 {[%clk 0:03:01.6]}
2... Nc6 {[%clk 0:02:57.9]} 3. f4 {[%clk 0:03:02.5]} 3... g6 {[%clk 0:02:58.6]}
4. Nf3 {[%clk 0:03:03.6]} 4... Bg7 {[%clk 0:02:59.4]} 5. Bc4 {[%clk 0:03:04.5]}
5... d6 {[%clk 0:02:59.6]} 6. f5 {[%clk 0:03:05.5]} 6... gxf5 {[%clk 0:02:56.4]}
7. d3 {[%clk 0:03:06.5]} 7... fxe4 {[%clk 0:02:55.6]} 8. dxe4 {[%clk 0:03:06.9]}
8... e6 {[%clk 0:02:48.2]} 9. O-O {[%clk 0:03:01.8]} 9... Nf6 {[%clk 0:02:46.1]}
10. Bg5 {[%clk 0:02:57]} 10... O-O {[%clk 0:02:46.3]} 11. Qe1 {[%clk 0:02:53.1]}
11... a6 {[%clk 0:02:41.4]} 12. a4 {[%clk 0:02:35.2]} 12... h6 {[%clk
0:02:39.2]} 13. Bf4 {[%clk 0:02:32.3]} 13... e5 {[%clk 0:02:36.7]} 14. Be3
{[%clk 0:02:31.1]} 14... Nd4 {[%clk 0:02:37.9]} 15. Qh4 {[%clk 0:02:17.7]} 15...
Ng4 {[%clk 0:02:25.7]} 16. Qxd8 {[%clk 0:02:10.5]} 16... Rxd8 {[%clk 0:02:25.8]}
17. Bxd4 {[%clk 0:02:11.8]} 17... cxd4 {[%clk 0:02:26.3]} 18. Nd5 {[%clk
0:02:12]} 18... Be6 {[%clk 0:02:25.5]} 19. Bd3 {[%clk 0:02:06.2]} 19... Bxd5
{[%clk 0:02:24.5]} 20. exd5 {[%clk 0:02:07.2]} 20... Nf6 {[%clk 0:02:26.2]} 21.
Nh4 {[%clk 0:02:00.5]} 21... Nxd5 {[%clk 0:02:23.3]} 22. Bc4 {[%clk 0:02:01]}
22... Nf4 {[%clk 0:02:15.4]} 23. g3 {[%clk 0:02:00.7]} 23... d5 {[%clk
0:02:16.7]} 24. gxf4 {[%clk 0:01:59.8]} 24... dxc4 {[%clk 0:02:17.8]} 25. Nf5
{[%clk 0:01:53.9]} 25... b5 {[%clk 0:02:12]} 26. Kh1 {[%clk 0:01:46.8]} 26...
Kh8 {[%clk 0:02:07.6]} 27. Nxg7 {[%clk 0:01:46.9]} 27... Kxg7 {[%clk 0:02:08.2]}
28. fxe5 {[%clk 0:01:48.1]} 28... b4 {[%clk 0:02:04.4]} 29. Rf6 {[%clk
0:01:43.9]} 29... Rd5 {[%clk 0:02:03.7]} 30. Rg1+ {[%clk 0:01:43.8]} 30... Kf8
{[%clk 0:02:02.6]} 31. e6 {[%clk 0:01:41.8]} 31... Ra7 {[%clk 0:02:02.9]} 32.
Rgf1 {[%clk 0:01:38.3]} 32... d3 {[%clk 0:01:59.3]} 33. cxd3 {[%clk 0:01:38.3]}
33... cxd3 {[%clk 0:02:00]} 34. exf7 {[%clk 0:01:12.9]} 34... d2 {[%clk
0:01:58.7]} 35. Rd1 {[%clk 0:01:03.9]} 35... Re7 {[%clk 0:01:58.4]} 36. Kg2
{[%clk 0:00:57.7]} 36... Re1 {[%clk 0:01:51.1]} 37. Rf1 {[%clk 0:00:58.3]} 37...
Rg5+ {[%clk 0:01:46.1]} 38. Kh3 {[%clk 0:00:57.7]} 38... Rxf1 {[%clk 0:01:37.9]}
39. Rxf1 {[%clk 0:00:58.2]} 39... Rc5 {[%clk 0:01:37.9]} 40. Rd1 {[%clk
0:00:55.7]} 40... Rc2 {[%clk 0:01:38.9]} 41. b3 {[%clk 0:00:53.3]} 41... Kxf7
{[%clk 0:01:39.8]} 42. Kg4 {[%clk 0:00:52.3]} 42... Kf6 {[%clk 0:01:40.5]} 43.
h4 {[%clk 0:00:53.3]} 43... Ke5 {[%clk 0:01:41.6]} 44. Kh5 {[%clk 0:00:52]}
44... Kd4 {[%clk 0:01:42.5]} 45. Kxh6 {[%clk 0:00:53.2]} 45... Kd3 {[%clk
0:01:43.9]} 46. h5 {[%clk 0:00:52.7]} 46... Ke2 {[%clk 0:01:45.3]} 47. Rh1
{[%clk 0:00:53.3]} 47... d1=Q {[%clk 0:01:44.9]} 48. Rxd1 {[%clk 0:00:54.5]}
48... Kxd1 {[%clk 0:01:46.1]} 49. Kg7 {[%clk 0:00:56.1]} 49... Rh2 {[%clk
0:01:47.1]} 50. h6 {[%clk 0:00:57.7]} 50... Kc2 {[%clk 0:01:48.6]} 51. h7 {[%clk
0:00:58.8]} 51... Kxb3 {[%clk 0:01:50.1]} 52. h8=Q {[%clk 0:01:00.7]} 52... Rxh8
{[%clk 0:01:52]} 53. Kxh8 {[%clk 0:01:02.3]} 53... Kxa4 {[%clk 0:01:53.9]} 54.
Kg7 {[%clk 0:01:03.1]} 54... b3 {[%clk 0:01:55.8]} 0-1

[Event "*** Titled Tuesday 3|2 Blitz"]
[Site "Chess.com"]
[Date "2016.09.06"]
[Round "9"]
[White "Mepetmepe"]
[Black "Rsnr"]
[Result "0-1"]
[WhiteElo "2379"]
[BlackElo "2519"]
[TimeControl "180+2"]
[EndTime "12:57:33 PDT"]
[Termination "Rsnr won by resignation"]

1. d4 {[%clk 0:03:01.9]} 1... d5 {[%clk 0:03:01.2]} 2. c4 {[%clk 0:03:03]} 2...
c6 {[%clk 0:03:02.9]} 3. Nf3 {[%clk 0:03:03.5]} 3... Nf6 {[%clk 0:03:04.4]} 4.
Nc3 {[%clk 0:03:04.6]} 4... e6 {[%clk 0:03:05.3]} 5. Bg5 {[%clk 0:03:05.7]} 5...
h6 {[%clk 0:03:06.4]} 6. Bxf6 {[%clk 0:03:05.9]} 6... Qxf6 {[%clk 0:03:08.3]} 7.
e3 {[%clk 0:03:06.7]} 7... Nd7 {[%clk 0:03:10]} 8. Bd3 {[%clk 0:03:07.8]} 8...
dxc4 {[%clk 0:03:11.7]} 9. Bxc4 {[%clk 0:03:09.7]} 9... Bd6 {[%clk 0:03:13.5]}
10. O-O {[%clk 0:03:11.2]} 10... O-O {[%clk 0:03:15.2]} 11. e4 {[%clk 0:03:12]}
11... Qe7 {[%clk 0:03:17]} 12. d5 {[%clk 0:03:07.1]} 12... cxd5 {[%clk
0:03:03.7]} 13. exd5 {[%clk 0:03:09]} 13... Nb6 {[%clk 0:03:05.5]} 14. Bb3
{[%clk 0:03:07.6]} 14... exd5 {[%clk 0:03:06.6]} 15. Nxd5 {[%clk 0:02:49.2]}
15... Nxd5 {[%clk 0:03:07.1]} 16. Qxd5 {[%clk 0:02:51.1]} 16... Be6 {[%clk
0:03:06.1]} 17. Qd3 {[%clk 0:02:39.7]} 17... Bxb3 {[%clk 0:03:05.5]} 18. Qxb3
{[%clk 0:02:41.6]} 18... Rac8 {[%clk 0:03:00.4]} 19. Rfe1 {[%clk 0:02:36.1]}
19... Qc7 {[%clk 0:03:01.5]} 20. h3 {[%clk 0:02:35.4]} 20... a6 {[%clk
0:03:02.4]} 21. Rad1 {[%clk 0:02:36]} 21... b5 {[%clk 0:02:48.6]} 22. Rd5 {[%clk
0:02:33.9]} 22... Rfd8 {[%clk 0:02:45]} 23. Red1 {[%clk 0:02:34.6]} 23... Be7
{[%clk 0:02:10.6]} 24. Ne5 {[%clk 0:02:19.6]} 24... Rxd5 {[%clk 0:02:09.4]} 25.
Qxd5 {[%clk 0:02:21.5]} 25... Bf6 {[%clk 0:02:08.3]} 26. Nd3 {[%clk 0:02:11.3]}
26... Rd8 {[%clk 0:02:08.9]} 27. Qf3 {[%clk 0:02:12.5]} 27... Qc2 {[%clk
0:02:07.4]} 28. b4 {[%clk 0:02:04.1]} 28... Qxa2 {[%clk 0:01:58.8]} 29. Nc5
{[%clk 0:02:05.2]} 29... Rxd1+ {[%clk 0:01:53.2]} 30. Qxd1 {[%clk 0:02:07.1]}
30... Qa3 {[%clk 0:01:44.6]} 31. Qe1 {[%clk 0:01:48.6]} 31... g6 {[%clk
0:01:15.9]} 32. g3 {[%clk 0:01:03.8]} 32... Kg7 {[%clk 0:01:12.4]} 33. Nd7
{[%clk 0:00:39.4]} 33... Bc3 {[%clk 0:01:10.9]} 34. Qd1 {[%clk 0:00:20.6]} 34...
Qxb4 {[%clk 0:01:07.3]} 35. h4 {[%clk 0:00:22.1]} 35... h5 {[%clk 0:01:06.6]}
36. Qd5 {[%clk 0:00:22.7]} 36... Qd4 {[%clk 0:01:00.9]} 37. Qc6 {[%clk
0:00:21.4]} 37... b4 {[%clk 0:00:59.2]} 38. Nc5 {[%clk 0:00:17.5]} 38... a5
{[%clk 0:00:52.7]} 39. Ne4 {[%clk 0:00:13.6]} 39... a4 {[%clk 0:00:47.2]} 40.
Qb7 {[%clk 0:00:09.5]} 40... a3 {[%clk 0:00:44.4]} 41. Ng5 {[%clk 0:00:10.3]}
41... Qf6 {[%clk 0:00:45.1]} 42. Qa7 {[%clk 0:00:08.2]} 42... Bd4 {[%clk
0:00:39.7]} 43. Ne6+ {[%clk 0:00:09.5]} 43... Qxe6 {[%clk 0:00:41.4]} 44. Qxd4+
{[%clk 0:00:10.7]} 44... Qf6 {[%clk 0:00:43.3]} 45. Qxb4 {[%clk 0:00:09.7]}
45... a2 {[%clk 0:00:44.3]} 0-1

[Event "*** Titled Tuesday 3|2 Blitz"]
[Site "Chess.com"]
[Date "2016.09.06"]
[Round "9"]
[White "Haykos"]
[Black "Blitzstream"]
[Result "0-1"]
[WhiteElo "2253"]
[BlackElo "2530"]
[TimeControl "180+2"]
[EndTime "12:58:00 PDT"]
[Termination "Blitzstream won by checkmate"]

1. e4 {[%clk 0:02:49.5]} 1... d5 {[%clk 0:03:00.9]} 2. exd5 {[%clk 0:02:48.5]}
2... Qxd5 {[%clk 0:03:02.8]} 3. Nc3 {[%clk 0:02:48.9]} 3... Qa5 {[%clk
0:03:03.4]} 4. g3 {[%clk 0:02:50.2]} 4... Nf6 {[%clk 0:03:03.7]} 5. Bg2 {[%clk
0:02:51.6]} 5... c6 {[%clk 0:03:05.4]} 6. Nge2 {[%clk 0:02:53.2]} 6... h5 {[%clk
0:03:06.4]} 7. h3 {[%clk 0:02:53.8]} 7... g6 {[%clk 0:03:06.8]} 8. d3 {[%clk
0:02:54.8]} 8... Bg7 {[%clk 0:03:08.1]} 9. Be3 {[%clk 0:02:56]} 9... Nbd7 {[%clk
0:03:06.9]} 10. Qd2 {[%clk 0:02:57.3]} 10... Nb6 {[%clk 0:03:07.8]} 11. O-O
{[%clk 0:02:54.8]} 11... Bf5 {[%clk 0:02:56.7]} 12. a3 {[%clk 0:02:55.4]} 12...
Rd8 {[%clk 0:02:31.1]} 13. b4 {[%clk 0:02:29]} 13... Qe5 {[%clk 0:02:31.6]} 14.
Rfe1 {[%clk 0:02:17.3]} 14... Nc4 {[%clk 0:02:25.9]} 15. Bf4 {[%clk 0:02:13]}
15... Qe6 {[%clk 0:01:57.8]} 16. Qc1 {[%clk 0:02:08.4]} 16... Nb6 {[%clk
0:01:39.3]} 17. Bc7 {[%clk 0:00:20.8]} 17... Rc8 {[%clk 0:01:33.7]} 18. Nd4
{[%clk 0:00:16.1]} 18... Qd7 {[%clk 0:01:34.5]} 19. Nxf5 {[%clk 0:00:17.1]}
19... Qxf5 {[%clk 0:01:21.9]} 20. Bxb6 {[%clk 0:00:16.9]} 20... axb6 {[%clk
0:01:22]} 21. Na4 {[%clk 0:00:18.8]} 21... Nd7 {[%clk 0:01:18.3]} 22. Ra2 {[%clk
0:00:18.4]} 22... Qb5 {[%clk 0:01:09.4]} 23. Qe3 {[%clk 0:00:15.3]} 23... e6
{[%clk 0:01:10.4]} 24. Nb2 {[%clk 0:00:16.3]} 24... O-O {[%clk 0:01:07.2]} 25.
Nc4 {[%clk 0:00:17.4]} 25... Ra8 {[%clk 0:00:53.3]} 26. Nd6 {[%clk 0:00:17.6]}
26... Qa6 {[%clk 0:00:51.6]} 27. c4 {[%clk 0:00:18]} 27... Rad8 {[%clk
0:00:36.8]} 28. b5 {[%clk 0:00:16.7]} 28... cxb5 {[%clk 0:00:38.7]} 29. cxb5
{[%clk 0:00:18]} 29... Qa7 {[%clk 0:00:37.6]} 30. Nxb7 {[%clk 0:00:19]} 30...
Rb8 {[%clk 0:00:37.2]} 31. Nd6 {[%clk 0:00:19.5]} 31... Nc5 {[%clk 0:00:38.4]}
32. Nc4 {[%clk 0:00:20.4]} 32... Rfd8 {[%clk 0:00:36.9]} 33. a4 {[%clk
0:00:21.6]} 33... Rxd3 {[%clk 0:00:35.3]} 34. Qe2 {[%clk 0:00:21.3]} 34... Rbd8
{[%clk 0:00:30.7]} 35. Ne5 {[%clk 0:00:21.4]} 35... Bxe5 {[%clk 0:00:26.9]} 36.
Qxe5 {[%clk 0:00:23.3]} 36... Qa5 {[%clk 0:00:25.9]} 37. Rc1 {[%clk 0:00:20.6]}
37... R3d4 {[%clk 0:00:22.3]} 38. Qf6 {[%clk 0:00:19.2]} 38... R4d6 {[%clk
0:00:07.9]} 39. Qe5 {[%clk 0:00:10.2]} 39... Nd3 {[%clk 0:00:06.5]} 40. Qc3
{[%clk 0:00:09.2]} 40... Nxc1 {[%clk 0:00:06.6]} 41. Rc2 {[%clk 0:00:10.7]}
41... Qxc3 {[%clk 0:00:06.8]} 42. Rxc3 {[%clk 0:00:11.7]} 42... Ne2+ {[%clk
0:00:08.7]} 43. Kf1 {[%clk 0:00:13.4]} 43... Nxc3 {[%clk 0:00:09.9]} 44. a5
{[%clk 0:00:15.3]} 44... Rd1# {[%clk 0:00:11]} 0-1

[Event "*** Titled Tuesday 3|2 Blitz"]
[Site "Chess.com"]
[Date "2016.09.06"]
[Round "9"]
[White "ChessWarrior7197"]
[Black "SCIM"]
[Result "1-0"]
[WhiteElo "2471"]
[BlackElo "2248"]
[TimeControl "180+2"]
[EndTime "12:58:06 PDT"]
[Termination "ChessWarrior7197 won by resignation"]

1. e4 {[%clk 0:03:01.9]} 1... c5 {[%clk 0:02:59.2]} 2. Nf3 {[%clk 0:03:02.3]}
2... e6 {[%clk 0:02:58.9]} 3. g3 {[%clk 0:03:02.7]} 3... Nc6 {[%clk 0:02:58.5]}
4. Bg2 {[%clk 0:03:03.6]} 4... Nf6 {[%clk 0:02:57.4]} 5. d3 {[%clk 0:03:04.2]}
5... Be7 {[%clk 0:02:55.3]} 6. O-O {[%clk 0:03:04.5]} 6... d6 {[%clk 0:02:55.7]}
7. Re1 {[%clk 0:03:05.6]} 7... O-O {[%clk 0:02:56]} 8. Nbd2 {[%clk 0:03:06.6]}
8... Bd7 {[%clk 0:02:55.9]} 9. h4 {[%clk 0:03:07.1]} 9... Rc8 {[%clk 0:02:51.6]}
10. Nf1 {[%clk 0:03:08.1]} 10... Ne5 {[%clk 0:02:49.5]} 11. N1h2 {[%clk
0:03:05.5]} 11... Bc6 {[%clk 0:02:48]} 12. b3 {[%clk 0:02:58.2]} 12... Qc7
{[%clk 0:02:38.3]} 13. Bb2 {[%clk 0:02:58.6]} 13... Rfd8 {[%clk 0:02:37.8]} 14.
Qe2 {[%clk 0:02:58]} 14... Bf8 {[%clk 0:02:32.3]} 15. Rf1 {[%clk 0:02:55.2]}
15... b5 {[%clk 0:02:25.7]} 16. Nxe5 {[%clk 0:02:55]} 16... dxe5 {[%clk
0:02:25.1]} 17. f4 {[%clk 0:02:56.4]} 17... Bd6 {[%clk 0:02:24.2]} 18. Nf3
{[%clk 0:02:55.8]} 18... Nd7 {[%clk 0:02:16.5]} 19. f5 {[%clk 0:02:51.1]} 19...
exf5 {[%clk 0:02:15.1]} 20. exf5 {[%clk 0:02:52.3]} 20... f6 {[%clk 0:02:11.2]}
21. Nd2 {[%clk 0:02:50.3]} 21... c4 {[%clk 0:02:04.6]} 22. dxc4 {[%clk
0:02:41.6]} 22... Nb6 {[%clk 0:02:02.6]} 23. Ne4 {[%clk 0:02:26.8]} 23... Bxe4
{[%clk 0:01:53.9]} 24. Bxe4 {[%clk 0:02:27]} 24... bxc4 {[%clk 0:01:54.4]} 25.
Kg2 {[%clk 0:02:28.1]} 25... c3 {[%clk 0:01:52.1]} 26. Bc1 {[%clk 0:02:28.5]}
26... Bc5 {[%clk 0:01:50.7]} 27. a3 {[%clk 0:02:23.1]} 27... Rd4 {[%clk
0:01:50.6]} 28. b4 {[%clk 0:02:23.6]} 28... Bf8 {[%clk 0:01:50.5]} 29. Qf3
{[%clk 0:02:22.5]} 29... Rcd8 {[%clk 0:01:49.2]} 30. Be3 {[%clk 0:02:22.5]}
30... Nc4 {[%clk 0:01:34.2]} 31. Bxd4 {[%clk 0:02:21.4]} 31... Rxd4 {[%clk
0:01:22.5]} 32. Bd5+ {[%clk 0:02:20.8]} 32... Kh8 {[%clk 0:01:22.9]} 33. Bxc4
{[%clk 0:02:21.8]} 33... Qxc4 {[%clk 0:01:22.6]} 34. Rad1 {[%clk 0:02:22.9]}
34... Rd2+ {[%clk 0:01:11.2]} 35. Rxd2 {[%clk 0:02:22.7]} 35... cxd2 {[%clk
0:01:11.5]} 36. Qd3 {[%clk 0:02:23.6]} 36... Qc6+ {[%clk 0:00:53.8]} 37. Kh2
{[%clk 0:02:24.2]} 37... h6 {[%clk 0:00:45.7]} 38. Qxd2 {[%clk 0:02:24.6]} 38...
Kh7 {[%clk 0:00:46.6]} 39. Rc1 {[%clk 0:02:18]} 39... e4 {[%clk 0:00:43.1]} 40.
c4 {[%clk 0:02:16.7]} 40... Bd6 {[%clk 0:00:43.3]} 41. Qd5 {[%clk 0:02:17.7]}
41... Qc7 {[%clk 0:00:42.1]} 42. Rc3 {[%clk 0:02:18.9]} 42... Be5 {[%clk
0:00:40.3]} 43. Re3 {[%clk 0:02:20.1]} 43... Bf4 {[%clk 0:00:40.1]} 44. Rb3
{[%clk 0:02:12.2]} 44... e3 {[%clk 0:00:29.3]} 45. Qf3 {[%clk 0:01:57]} 45...
Qxc4 {[%clk 0:00:29.6]} 46. Rb2 {[%clk 0:01:58.1]} 46... Be5 {[%clk 0:00:27]}
47. Re2 {[%clk 0:01:56.7]} 47... Bd4 {[%clk 0:00:27.8]} 48. Kg2 {[%clk
0:01:51.5]} 48... Bb6 {[%clk 0:00:28]} 49. g4 {[%clk 0:01:47.7]} 49... Qd4
{[%clk 0:00:26.5]} 50. g5 {[%clk 0:01:45.6]} 50... fxg5 {[%clk 0:00:17.7]} 51.
hxg5 {[%clk 0:01:46.7]} 51... hxg5 {[%clk 0:00:18.6]} 52. Rc2 {[%clk 0:01:46.1]}
52... Qh4 {[%clk 0:00:13.5]} 53. Qh3 {[%clk 0:01:43.6]} 53... Kh6 {[%clk
0:00:11.1]} 54. a4 {[%clk 0:01:40.1]} 54... Kh5 {[%clk 0:00:10.5]} 55. a5 {[%clk
0:01:40.5]} 55... Bd4 {[%clk 0:00:10.8]} 56. b5 {[%clk 0:01:39.2]} 56... g4
{[%clk 0:00:09.1]} 57. Qxh4+ {[%clk 0:01:39.6]} 57... Kxh4 {[%clk 0:00:10]} 58.
Kf1 {[%clk 0:01:28.2]} 58... g3 {[%clk 0:00:08.9]} 59. Rc4 {[%clk 0:01:28.1]}
59... e2+ {[%clk 0:00:08.1]} 60. Kxe2 {[%clk 0:01:27.2]} 60... g2 {[%clk
0:00:09.6]} 61. Rxd4+ {[%clk 0:01:28.4]} 61... Kg3 {[%clk 0:00:10.9]} 62. Rd1
{[%clk 0:01:28.1]} 1-0

[Event "*** Titled Tuesday 3|2 Blitz"]
[Site "Chess.com"]
[Date "2016.09.06"]
[Round "9"]
[White "severomorskij"]
[Black "Lapitch"]
[Result "1/2-1/2"]
[WhiteElo "2619"]
[BlackElo "2574"]
[TimeControl "180+2"]
[EndTime "12:58:35 PDT"]
[Termination "Game drawn by agreement"]

1. d4 {[%clk 0:03:01.9]} 1... d5 {[%clk 0:02:58.5]} 2. c4 {[%clk 0:03:02.5]}
2... e6 {[%clk 0:02:59.5]} 3. Nc3 {[%clk 0:03:03]} 3... c5 {[%clk 0:02:59.7]} 4.
e3 {[%clk 0:03:02.8]} 4... Nf6 {[%clk 0:02:58.7]} 5. Nf3 {[%clk 0:03:03.8]} 5...
a6 {[%clk 0:02:59]} 6. cxd5 {[%clk 0:02:58.4]} 6... exd5 {[%clk 0:03:00.9]} 7.
Be2 {[%clk 0:02:56.9]} 7... Nc6 {[%clk 0:03:01.5]} 8. O-O {[%clk 0:02:57.8]}
8... Bd6 {[%clk 0:02:59.7]} 9. dxc5 {[%clk 0:02:58.3]} 9... Bxc5 {[%clk
0:03:00.4]} 10. b3 {[%clk 0:02:59.4]} 10... O-O {[%clk 0:02:59.8]} 11. Bb2
{[%clk 0:03:00.4]} 11... Bg4 {[%clk 0:02:59.8]} 12. Rc1 {[%clk 0:02:57.9]} 12...
Ba7 {[%clk 0:02:55.8]} 13. Na4 {[%clk 0:02:57.8]} 13... Ne4 {[%clk 0:02:53.5]}
14. Ne5 {[%clk 0:02:35]} 14... Bxe2 {[%clk 0:02:25.3]} 15. Qxe2 {[%clk 0:02:33]}
15... Qd6 {[%clk 0:02:15]} 16. Nxc6 {[%clk 0:02:25.1]} 16... bxc6 {[%clk
0:02:14.4]} 17. Qg4 {[%clk 0:02:13.7]} 17... f6 {[%clk 0:02:08.9]} 18. Nc3
{[%clk 0:02:00.1]} 18... Rfe8 {[%clk 0:01:39.4]} 19. Nxe4 {[%clk 0:01:57.5]}
19... Rxe4 {[%clk 0:01:37.8]} 20. Qg3 {[%clk 0:01:45.2]} 20... Qxg3 {[%clk
0:01:15]} 21. hxg3 {[%clk 0:01:43.9]} 21... Re6 {[%clk 0:01:13.1]} 22. Rc2
{[%clk 0:01:37.7]} 22... Kf7 {[%clk 0:01:11.6]} 23. Rfc1 {[%clk 0:01:36.8]}
23... Rc8 {[%clk 0:01:13]} 24. Ba3 {[%clk 0:01:19.1]} 24... Ke8 {[%clk 0:01:07]}
25. Bc5 {[%clk 0:01:17.8]} 25... Bb8 {[%clk 0:01:03.3]} 26. Kf1 {[%clk
0:01:15.9]} 26... Kd7 {[%clk 0:01:04]} 27. Ke2 {[%clk 0:01:16.3]} 27... h5
{[%clk 0:01:02.7]} 28. Kd3 {[%clk 0:01:15.1]} 28... g6 {[%clk 0:01:01.8]} 29. b4
{[%clk 0:01:13.6]} 29... Re4 {[%clk 0:00:57.6]} 30. Rc3 {[%clk 0:01:09.3]} 30...
Bd6 {[%clk 0:00:53]} 31. Bxd6 {[%clk 0:00:35.7]} 31... Kxd6 {[%clk 0:00:53.9]}
32. a3 {[%clk 0:00:36.8]} 32... a5 {[%clk 0:00:45.2]} 33. Rb3 {[%clk 0:00:13.2]}
33... Rb8 {[%clk 0:00:40.3]} 34. Rcb1 {[%clk 0:00:13.8]} 34... axb4 {[%clk
0:00:36.4]} 35. axb4 {[%clk 0:00:13.8]} 35... Rb5 {[%clk 0:00:36.3]} 36. R1b2
{[%clk 0:00:14]} 36... Re8 {[%clk 0:00:36.6]} 37. Ra3 {[%clk 0:00:08.6]} 37...
Reb8 {[%clk 0:00:37.1]} 38. Ra4 {[%clk 0:00:09.3]} 38... Ke5 {[%clk 0:00:34.6]}
39. Rc2 {[%clk 0:00:09.3]} 39... Rxb4 {[%clk 0:00:21.1]} 40. Rxb4 {[%clk
0:00:10.1]} 40... Rxb4 {[%clk 0:00:23]} 41. Rxc6 {[%clk 0:00:11.2]} 41... Rb2
{[%clk 0:00:24.3]} 42. Rc2 {[%clk 0:00:06.4]} 42... Rxc2 {[%clk 0:00:23.5]} 43.
Kxc2 {[%clk 0:00:08]} 43... d4 {[%clk 0:00:11]} 44. Kd3 {[%clk 0:00:08.6]} 44...
dxe3 {[%clk 0:00:12.5]} 45. Kxe3 {[%clk 0:00:10.1]} 45... Kf5 {[%clk 0:00:13.8]}
46. Kf3 {[%clk 0:00:10]} 46... g5 {[%clk 0:00:14.4]} 47. Ke3 {[%clk 0:00:10.8]}
47... Ke5 {[%clk 0:00:15.7]} 48. Kd3 {[%clk 0:00:11.4]} 48... Kf5 {[%clk
0:00:16.3]} 49. Ke3 {[%clk 0:00:12.6]} 49... Ke5 {[%clk 0:00:17.6]} 50. Kd3
{[%clk 0:00:13.8]} 50... f5 {[%clk 0:00:15.6]} 51. Ke3 {[%clk 0:00:13.9]} 51...
f4+ {[%clk 0:00:14.6]} 52. gxf4+ {[%clk 0:00:11.5]} 52... gxf4+ {[%clk
0:00:16.5]} 53. Kf3 {[%clk 0:00:12]} 53... Kf5 {[%clk 0:00:18]} 54. g3 {[%clk
0:00:10.3]} 54... fxg3 {[%clk 0:00:19.9]} 55. fxg3 {[%clk 0:00:10.2]} 55... Kg5
{[%clk 0:00:21.1]} 56. Kg2 {[%clk 0:00:09.8]} 1/2-1/2